bitfinex-derivatives/quotes_ETHF0:USTF0_20240923
["timestamp","ask_amount","ask_price","bid_price","bid_amount"]
[1727108750031,0.37208,2687.5,2687.0,3.2078]
[1727108750329,5.16011401,2687.9,2687.0,3.2078]
[1727108750638,3.57982,2687.9,2687.2,0.93028]
[1727108750932,3.57982,2687.9,2687.6,0.37205]
[1727108751330,3.2078,2687.9,2687.4,3.2078]
[1727108751528,0.37202,2687.9,2687.7,0.37204]
[1727108751733,1.0168,2688.1,2687.4,3.2078]
[1727108751935,1.38879,2688.1,2687.4,3.2078]
[1727108752136,1.38879,2688.1,2687.8,0.37202]
[1727108752934,1.38879,2688.1,2687.9,0.37201]
[1727108753162,1.0168,2688.1,2687.9,0.37201]
[1727108753334,1.38879,2688.1,2687.9,0.37201]
[1727108754233,0.37201,2688.0,2687.8,0.37202]
[1727108754431,1.0168,2688.1,2687.7,3.2078]
[1727108754732,1.38879,2688.1,2687.9,0.37201]
[1727108755334,1.38879,2688.1,2687.7,3.2078]
[1727108755335,0.9331,2688.3,2688.2,0.37197]
[1727108755530,0.9331,2688.3,2687.7,4.13789]
[1727108755531,1.30506,2688.3,2688.1,0.37198]
[1727108756028,0.9331,2688.3,2687.7,3.2078]
[1727108756231,0.37198,2688.2,2688.0,0.37199]
[1727108757039,0.9331,2688.3,2688.1,0.37198]
[1727108757245,1.30506,2688.3,2688.1,0.37198]
[1727108757935,0.9331,2688.3,2687.7,3.2078]
[1727108758137,0.37202,2687.9,2687.7,0.37203]
[1727108758332,0.37203,2687.8,2687.7,0.37203]
[1727108758534,0.37203,2687.8,2687.6,0.9809]
[1727108758535,0.37203,2687.8,2687.6,1.35295]
[1727108758737,0.37203,2687.8,2687.7,0.37204]
[1727108758937,0.92997,2688.1,2687.8,0.37203]
[1727108759141,0.37202,2687.9,2687.7,0.37204]
[1727108759445,0.37199,2688.1,2687.6,1.91104]
[1727108759744,0.37199,2688.1,2687.9,0.372]
[1727108759934,0.37199,2688.1,2687.9,0.3605]
[1727108760446,0.92998,2688.1,2687.7,3.57984]
[1727108760650,0.37203,2687.8,2687.7,3.57984]
[1727108760943,0.37203,2687.8,2687.2,0.37211]
[1727108760944,6.93008,2687.8,2687.2,0.37211]
[1727108761135,0.3721,2687.3,2687.2,3.2078]
[1727108761444,1.30244,2687.1,2686.7,0.9549]
[1727108761640,0.93032,2687.1,2686.8,0.37216]
[1727108762047,0.93032,2687.1,2686.7,1.32707]
[1727108762536,0.37217,2686.8,2686.7,0.9549]
[1727108762733,0.37217,2686.8,2686.7,1.32708]
[1727108762933,0.9303,2687.2,2686.7,0.9549]
[1727108763137,0.93041,2686.9,2686.0,3.2078]
[1727108763346,3.2078,2686.9,2686.3,0.1068]
[1727108763547,0.37222,2686.4,2686.3,0.1068]
[1727108763850,0.37221,2686.5,2686.3,0.47903]
[1727108764046,0.3722,2686.6,2686.3,0.47903]
[1727108764236,0.9881,2686.8,2686.3,0.1068]
[1727108764437,0.37219,2686.7,2686.5,0.3722]
[1727108765750,0.37219,2686.7,2686.4,0.37221]
[1727108766548,0.93046,2686.7,2686.3,0.1068]
[1727108766746,0.37222,2686.5,2686.3,0.1068]
[1727108766942,0.93046,2686.7,2686.3,0.1068]
[1727108767143,0.93046,2686.7,2686.3,0.47903]
[1727108767347,0.3722,2686.6,2686.4,0.37222]
[1727108767746,0.37221,2686.5,2686.3,0.1068]
[1727108768048,0.37221,2686.5,2686.3,0.47903]
[1727108768247,0.37222,2686.4,2686.3,0.1068]
[1727108768446,3.2078,2686.6,2686.3,0.1068]
[1727108768642,0.3722,2686.6,2686.4,0.37221]
[1727108769139,0.3722,2686.6,2686.3,0.1068]
[1727108769140,0.37219,2686.7,2686.5,0.37221]
[1727108769339,6.40643401,2687.2,2687.0,0.37214]
[1727108769543,0.9736,2687.3,2687.0,0.37214]
[1727108769748,0.37211,2687.2,2687.0,0.37214]
[1727108770143,0.37222,2686.4,2686.3,0.1068]
[1727108770451,1.30278,2686.4,2686.3,0.1068]
[1727108770647,6.00088,2686.4,2686.3,0.1068]
[1727108770843,5.07032,2686.4,2686.3,0.1068]
[1727108771043,6.00088,2686.4,2686.3,0.1068]
[1727108771446,11.62866,2686.4,2685.6,3.2078]
[1727108771647,0.37231,2685.8,2685.4,0.37235]
[1727108771952,0.37232,2685.7,2685.3,0.37237]
[1727108772543,0.37232,2685.7,2685.3,0.37236]
[1727108772838,0.37232,2685.7,2685.4,0.37236]
[1727108773041,3.2078,2685.9,2685.2,3.2078]
[1727108773042,0.37234,2685.6,2685.2,3.2078]
[1727108773439,0.37235,2685.5,2685.1,0.3724]
[1727108773841,0.37236,2685.4,2685.1,0.3724]
[1727108774043,0.93077,2685.8,2685.0,2.30441]
[1727108774241,0.37238,2685.3,2685.0,1.932]
[1727108774443,4.13863,2685.7,2685.0,0.9616]
[1727108774649,0.37237,2685.4,2685.1,0.3724]
[1727108774849,4.13863,2685.7,2685.1,0.3724]
[1727108775242,0.37235,2685.5,2685.2,0.37239]
[1727108775442,0.37235,2685.5,2685.0,0.9616]
[1727108775443,0.37235,2685.5,2685.1,0.37239]
[1727108775645,1.0119,2685.8,2685.0,0.9616]
[1727108775845,0.37235,2685.5,2685.1,0.3724]
[1727108776045,0.37234,2685.6,2685.0,0.9616]
[1727108776246,0.37234,2685.6,2685.2,0.37238]
[1727108776443,3.2078,2685.7,2685.1,0.3724]
[1727108776644,0.37236,2685.5,2685.1,0.3724]
[1727108777152,1.0119,2685.8,2685.3,0.37237]
[1727108777352,0.37232,2685.7,2685.3,0.37237]
[1727108777557,1.38421,2685.8,2685.4,0.37236]
[1727108777758,0.37232,2685.7,2685.4,0.37236]
[1727108778054,0.37232,2685.7,2685.3,0.37236]
[1727108778354,0.37234,2685.6,2685.3,0.37236]
[1727108778558,3.2078,2685.7,2685.2,0.37238]
[1727108778751,0.37235,2685.5,2685.2,0.37238]
[1727108778947,3.2078,2685.7,2685.2,0.37238]
[1727108779252,0.37234,2685.6,2685.2,0.37238]
[1727108779447,0.37235,2685.5,2685.1,3.58019]
[1727108779648,0.37235,2685.5,2685.1,3.2078]
[1727108780051,0.37235,2685.5,2685.2,0.37238]
[1727108780252,0.37234,2685.6,2685.1,3.2078]
[1727108780458,0.9505,2685.9,2685.6,0.37233]
[1727108780758,0.37228,2686.0,2685.4,3.2078]
[1727108780952,0.37228,2686.0,2685.5,40.8]
[1727108781350,1.9584,2686.3,2685.6,0.37233]
[1727108781548,0.3723,2685.9,2685.5,41.17234]
[1727108781755,0.3723,2685.9,2685.5,40.8]
[1727108782153,0.93063,2686.2,2685.6,0.37233]
[1727108782349,0.37226,2686.2,2685.7,3.2078]
[1727108782550,1.9584,2686.3,2685.7,3.2078]
[1727108782751,2.33064,2686.3,2685.9,0.37229]
[1727108783353,3.2078,2686.5,2685.8,0.9808]
[1727108783555,0.3722,2686.6,2686.3,0.37223]
[1727108783761,0.3722,2686.6,2686.3,3.2078]
[1727108784258,1.8952,2686.8,2686.3,3.2078]
[1727108784447,0.37219,2686.7,2686.3,3.2078]
[1727108784652,1.8952,2686.8,2686.3,3.2078]
[1727108784851,4.082,2687.2,2686.7,3.2078]
[1727108785052,0.93027,2687.3,2686.2,0.93063]
[1727108785053,0.3721,2687.3,2686.8,3.2078]
[1727108785255,0.3721,2687.3,2686.9,0.37215]
[1727108785457,0.3721,2687.3,2686.8,3.2078]
[1727108785659,0.37211,2687.2,2686.8,3.57996]
[1727108785865,0.37212,2687.2,2686.9,0.37215]
[1727108786058,2.82536,2687.6,2687.0,0.37214]
[1727108786263,1.8952,2687.6,2687.3,0.37209]
[1727108786761,8.21982,2688.0,2687.1,3.2078]
[1727108787260,0.37203,2687.8,2687.4,3.57988]
[1727108787757,8.21982,2688.0,2687.5,3.7208]
[1727108787758,3.2078,2688.0,2687.5,3.7208]
[1727108787959,1.45580335,2688.6,2687.8,3.22]
[1727108788151,4.13749,2689.0,2688.3,3.57976]
[1727108788353,4.13749,2689.0,2688.3,3.2078]
[1727108788354,3.2078,2689.0,2688.3,3.2078]
[1727108788557,3.2078,2689.0,2688.6,0.37191]
[1727108788757,1.8801,2689.2,2688.6,0.37191]
[1727108788758,0.37186,2689.1,2688.6,3.57971]
[1727108789061,0.37186,2689.0,2688.6,3.2078]
[1727108789767,0.37188,2688.9,2688.5,0.37192]
[1727108790061,0.3719,2688.8,2688.5,3.2078]
[1727108790252,3.21,2688.8,2687.9,3.2078]
[1727108790559,0.92977,2688.7,2687.9,3.2078]
[1727108790763,0.37194,2688.5,2688.2,3.2078]
[1727108790963,0.9297,2688.9,2688.2,3.2078]
[1727108790964,0.37188,2688.9,2688.2,3.2078]
[1727108791156,1.8801,2689.2,2688.2,3.2078]
[1727108791360,1.8801,2689.2,2687.9,4.14004]
[1727108791361,0.37186,2689.1,2688.7,0.3719]
[1727108791663,0.37185,2689.1,2688.7,0.3719]
[1727108792155,0.37187,2689.0,2688.6,0.37191]
[1727108792861,0.37185,2689.1,2688.7,0.3719]
[1727108793062,0.37182,2689.3,2688.9,3.2078]
[1727108793259,0.37182,2689.3,2689.0,3.2078]
[1727108793764,0.37182,2689.4,2689.0,3.57966]
[1727108793965,0.37182,2689.3,2689.0,3.2078]
[1727108794167,0.37182,2689.3,2689.0,3.57966]
[1727108794367,0.92949,2689.5,2689.0,3.2078]
[1727108795272,0.37183,2689.3,2689.0,3.2078]
[1727108795470,0.37183,2689.3,2689.0,3.57966]
[1727108795664,0.37181,2689.4,2689.1,0.37184]
[1727108795875,0.37182,2689.3,2689.0,3.57965]
[1727108796467,0.3718,2689.5,2689.2,0.37183]
[1727108796675,5.1455,2689.7,2689.1,0.37184]
[1727108796676,0.37181,2689.4,2689.1,0.37184]
[1727108797370,0.37182,2689.4,2689.0,3.57966]
[1727108797676,0.37183,2689.3,2689.0,3.57966]
[1727108798171,6.07495,2689.7,2689.0,3.2078]
[1727108798372,0.3718,2689.5,2689.0,3.2078]
[1727108798769,0.3718,2689.5,2689.1,0.37185]
[1727108798969,0.3718,2689.5,2689.2,0.37183]
[1727108799168,0.3718,2689.5,2689.0,3.2078]
[1727108799169,0.37179,2689.6,2689.3,3.57962]
[1727108799368,1.9377,2689.7,2688.6,2.85187]
[1727108799369,1.9377,2689.7,2689.0,3.2078]
[1727108799670,0.37187,2689.0,2688.9,3.2078]
[1727108799870,0.92955,2689.4,2688.9,3.2078]
[1727108800083,0.37184,2689.2,2688.9,3.57967]
[1727108800269,0.37185,2689.1,2688.9,3.57967]
[1727108800467,0.37184,2689.2,2688.9,3.57967]
[1727108800670,0.37186,2689.0,2688.9,3.2078]
[1727108800976,0.37185,2689.1,2688.9,3.57967]
[1727108801377,0.37186,2689.0,2688.9,3.2078]
[1727108801980,0.92956,2689.3,2688.9,3.57968]
[1727108802178,0.37184,2689.2,2688.9,3.57968]
[1727108802380,0.37183,2689.3,2689.0,0.37186]
[1727108802572,0.37183,2689.2,2689.0,0.37186]
[1727108803383,4.13731,2689.5,2688.9,3.57967]
[1727108803384,0.37185,2689.1,2688.9,3.57967]
[1727108803675,0.92956,2689.3,2688.6,0.9243]
[1727108803878,0.37187,2689.0,2688.8,0.37189]
[1727108804173,0.37185,2689.1,2688.9,0.37188]
[1727108804366,0.37186,2689.0,2688.8,3.57968]
[1727108804776,0.37186,2689.1,2688.9,0.37188]
[1727108805081,0.37186,2689.0,2688.8,3.57968]
[1727108805277,0.92968,2689.0,2688.7,3.2078]
[1727108805582,0.37186,2689.0,2688.8,0.37188]
[1727108805772,4.13736,2689.3,2688.8,0.37188]
[1727108806079,0.37185,2689.1,2688.9,0.37187]
[1727108806672,0.37186,2689.0,2688.8,0.37188]
[1727108806873,0.92949,2689.5,2688.6,3.2078]
[1727108807275,0.37188,2688.9,2688.7,0.3719]
[1727108807679,5.1455,2689.7,2688.6,3.2078]
[1727108807970,0.37184,2689.2,2688.6,3.2078]
[1727108808171,5.1455,2689.7,2688.7,0.92977]
[1727108808373,0.37181,2689.4,2689.2,0.37182]
[1727108808578,0.37183,2689.3,2689.1,0.37184]
[1727108808779,0.37183,2689.3,2689.1,0.36024]
[1727108808982,0.92947,2689.6,2689.0,2.26296]
[1727108809181,0.37183,2689.3,2689.1,0.37185]
[1727108809381,6.07494,2689.7,2689.0,1.8911]
[1727108809683,0.37182,2689.3,2689.2,0.37183]
[1727108809981,0.37184,2689.2,2689.1,0.37184]
[1727108810182,0.37179,2689.6,2689.0,1.8911]
[1727108810390,0.37178,2689.6,2689.4,3.2078]
[1727108810679,0.37179,2689.5,2689.4,3.2078]
[1727108810893,2.30947,2689.7,2689.5,0.37179]
[1727108811079,2.30947,2689.7,2689.0,2.82074]
[1727108811080,1.9377,2689.7,2689.2,3.2078]
[1727108811279,0.37179,2689.6,2689.4,0.37181]
[1727108811480,0.37179,2689.5,2689.4,0.37181]
[1727108811782,0.3718,2689.5,2689.3,3.2078]
[1727108811987,0.3718,2689.5,2689.3,3.57962]
[1727108812179,1.9377,2689.7,2689.3,3.2078]
[1727108812379,1.9377,2689.7,2689.5,0.37179]
[1727108812684,0.37177,2689.7,2689.5,0.37179]
[1727108813186,0.37177,2689.7,2687.3,0.3723]
[1727108813187,0.37191,2688.7,2687.3,0.3723]
[1727108813371,0.37191,2688.7,2687.4,1.8828]
[1727108813372,8.7983,2688.6,2687.4,1.8828]
[1727108813576,3.57979,2688.1,2687.4,1.8828]
[1727108813786,3.2078,2688.1,2687.4,1.8828]
[1727108814498,3.2078,2688.1,2686.9,1.0172]
[1727108814784,3.2078,2688.1,2685.5,3.724]
[1727108814785,0.37212,2687.1,2686.2,0.187]
[1727108814994,3.22,2687.4,2686.0,5.157]
[1727108814995,3.2078,2686.9,2686.0,5.157]
[1727108815179,3.57995,2686.9,2686.0,5.157]
[1727108815379,3.2078,2686.6,2685.8,0.9868]
[1727108815578,3.2078,2686.6,2685.7,5.157]
[1727108815777,3.2078,2686.6,2685.8,40.8]
[1727108815986,3.58001,2686.6,2685.8,40.8]
[1727108816178,3.58001,2686.6,2685.6,8.3648]
[1727108816378,3.40565595,2686.7,2685.5,5.157]
[1727108816379,3.2078,2686.3,2685.5,5.157]
[1727108816581,3.2078,2686.3,2685.6,40.8]
[1727108817182,3.58004,2686.3,2685.6,40.8]
[1727108817589,3.2078,2686.3,2685.6,40.8]
[1727108817789,3.2078,2686.3,2685.2,8.3658]
[1727108817992,3.62,2686.5,2685.2,3.2078]
[1727108817993,3.58008,2686.0,2685.2,3.2078]
[1727108818181,3.2078,2685.6,2685.0,0.9868]
[1727108818398,3.2078,2685.6,2685.1,40.8]
[1727108819481,3.2078,2685.9,2685.3,3.2078]
[1727108820396,3.2078,2685.9,2685.1,40.8]
[1727108821188,3.2078,2685.6,2685.1,40.8]
[1727108822588,3.2078,2685.9,2685.3,3.2078]
[1727108822794,3.2078,2686.2,2685.3,3.2078]
[1727108823098,3.2078,2685.9,2685.1,40.8]
[1727108823994,3.2078,2686.2,2685.2,4.39853359]
[1727108824194,3.2078,2686.2,2685.3,3.58016]
[1727108825290,3.2078,2686.2,2685.4,0.37236]
[1727108825487,3.2078,2686.2,2685.3,3.58017]
[1727108825704,3.2078,2685.8,2685.1,41.1724]
[1727108825906,3.2078,2685.8,2685.1,40.8]
[1727108826112,3.2078,2685.8,2685.2,5.161]
[1727108826312,0.37234,2685.6,2685.1,40.8]
[1727108827009,0.37235,2685.5,2685.1,40.8]
[1727108827311,0.37233,2685.7,2685.1,40.8]
[1727108827703,3.2078,2685.5,2685.1,40.8]
[1727108829508,0.37233,2685.7,2685.1,40.8]
[1727108829711,3.2078,2685.5,2685.1,40.8]
[1727108830403,3.2078,2685.8,2685.1,40.8]
[1727108830604,3.62,2686.0,2685.1,40.8]
[1727108830605,0.37238,2685.3,2685.1,40.8]
[1727108830911,0.37238,2685.3,2684.2,0.37252]
[1727108830912,0.93101,2685.1,2684.2,0.37252]
[1727108831111,3.58026,2684.7,2684.1,1.31463]
[1727108831313,3.2078,2684.7,2684.2,40.8]
[1727108831506,3.2078,2685.1,2684.6,0.37247]
[1727108831708,3.2078,2685.1,2684.7,0.37245]
[1727108832117,3.2078,2685.1,2684.2,44.0078]
[1727108832314,4.082,2685.4,2684.2,49.1558]
[1727108832315,3.2078,2684.8,2684.2,49.1558]
[1727108832508,3.2078,2685.0,2684.2,49.1558]
[1727108832704,7.2898,2685.4,2684.8,0.37244]
[1727108832911,3.58017,2685.4,2684.9,0.37243]
[1727108833209,3.58016,2685.4,2684.9,0.37243]
[1727108833408,3.2078,2685.4,2684.6,0.9704]
[1727108833606,0.37232,2685.7,2685.2,0.37238]
[1727108833819,0.37232,2685.7,2685.1,0.37239]
[1727108834017,7.66211,2685.8,2685.2,0.37239]
[1727108834214,7.2898,2685.8,2685.2,3.2078]
[1727108834421,7.66211,2685.8,2685.3,0.37236]
[1727108834717,7.66211,2685.8,2684.9,0.93108]
[1727108834718,7.2898,2685.8,2685.4,0.37236]
[1727108834911,3.2078,2685.8,2685.4,0.37236]
[1727108835217,3.2078,2685.8,2684.9,3.2078]
[1727108835416,3.58011,2685.8,2685.3,0.37237]
[1727108835911,3.58011,2685.8,2684.9,3.2078]
[1727108835912,0.37236,2685.4,2684.9,3.2078]
[1727108836422,0.37236,2685.4,2684.9,3.58022]
[1727108836709,0.37238,2685.3,2684.9,3.58022]
[1727108836915,3.2078,2685.1,2684.6,0.9704]
[1727108837105,3.22,2685.3,2684.3,0.3725]
[1727108837106,3.58025,2684.8,2684.3,0.3725]
[1727108837310,3.58025,2684.8,2684.2,40.8]
[1727108837311,3.2078,2684.6,2684.2,40.8]
[1727108837516,3.2078,2685.0,2684.6,0.37246]
[1727108838014,3.2078,2684.7,2684.2,40.8]
[1727108838218,3.2078,2684.7,2684.3,0.37251]
[1727108838516,0.9397,2685.2,2684.2,40.8]
[1727108838517,3.58023,2685.0,2684.2,40.8]
[1727108838918,3.58023,2685.0,2684.6,0.37247]
[1727108839110,3.58018,2685.3,2684.8,0.37243]
[1727108839316,3.58018,2685.3,2684.4,4.13906]
[1727108839613,0.37237,2685.4,2684.9,0.37242]
[1727108839918,0.37237,2685.4,2685.0,0.37241]
[1727108840117,3.2078,2685.6,2685.2,0.37238]
[1727108840320,0.37231,2685.8,2685.4,0.37235]
[1727108840617,0.37231,2685.8,2685.2,3.2078]
[1727108840618,3.2078,2685.9,2685.2,3.2078]
[1727108840815,3.22,2686.4,2685.6,3.2078]
[1727108840816,3.2078,2686.2,2685.6,3.2078]
[1727108841017,0.3723,2685.9,2685.5,0.37234]
[1727108841212,0.37227,2686.1,2685.3,49.1568]
[1727108841419,0.37228,2686.0,2685.6,0.37233]
[1727108841724,3.2078,2686.2,2686.0,0.37227]
[1727108841922,0.37222,2686.5,2685.9,3.2078]
[1727108842124,7.662,2686.6,2686.0,3.2078]
[1727108842321,0.37223,2686.4,2686.0,0.37227]
[1727108842715,4.082,2686.6,2685.9,0.37228]
[1727108842915,4.082,2686.6,2686.0,0.37228]
[1727108843212,7.2898,2686.6,2685.9,0.37228]
[1727108843415,0.37223,2686.4,2686.0,0.37227]
[1727108843614,7.2898,2686.6,2686.0,3.58007]
[1727108843615,0.37222,2686.5,2686.0,3.58007]
[1727108843819,0.37222,2686.5,2686.1,0.37226]
[1727108844119,0.9847,2686.9,2686.3,3.2078]
[1727108844120,4.1925,2686.9,2686.3,3.2078]
[1727108844321,0.37219,2686.7,2686.2,0.37224]
[1727108844514,0.3722,2686.6,2686.0,3.2078]
[1727108844714,0.3722,2686.6,2686.1,0.37225]
[1727108844932,0.37221,2686.5,2686.1,0.37225]
[1727108845418,8.63234,2687.1,2686.0,3.2078]
[1727108845419,3.2078,2686.6,2686.0,3.2078]
[1727108845611,3.58001,2686.6,2686.0,3.2078]
[1727108845814,3.58001,2686.6,2686.1,0.37225]
[1727108846330,3.58001,2686.6,2686.2,0.37224]
[1727108846622,3.58001,2686.6,2686.0,6.9302]
[1727108846623,3.2078,2686.6,2686.0,6.9302]
[1727108846823,3.2078,2686.6,2686.4,0.37221]
[1727108847013,3.57996,2686.9,2686.5,4.04811]
[1727108847214,0.37217,2686.8,2686.5,40.8]
[1727108847422,3.57996,2686.9,2686.5,40.8]
[1727108848121,3.57996,2686.9,2686.5,41.1722]
[1727108848324,3.2078,2686.9,2686.5,0.3722]
[1727108848518,3.57995,2686.9,2686.5,0.3722]
[1727108848825,3.2078,2686.9,2686.4,3.2078]
[1727108849022,3.2078,2686.9,2686.5,0.3722]
[1727108849023,3.57996,2686.9,2686.5,0.3722]
[1727108849427,3.57996,2686.9,2686.6,40.8]
[1727108850017,3.57996,2686.9,2686.5,0.3722]
[1727108850421,3.57996,2686.9,2686.5,41.1722]
[1727108851420,3.2078,2686.9,2686.6,0.37219]
[1727108851831,3.2078,2686.9,2686.5,40.8]
[1727108852024,3.2078,2687.7,2687.2,0.37211]
[1727108852330,3.2078,2687.7,2687.4,0.37208]
[1727108852520,0.37202,2687.9,2687.5,3.57986]
[1727108853731,0.37201,2687.9,2687.6,0.37205]
[1727108854029,0.37203,2687.8,2687.4,3.57988]
[1727108854424,4.1821,2688.0,2687.4,3.2078]
[1727108854425,0.37205,2687.7,2687.4,3.2078]
[1727108854630,0.37206,2687.6,2687.0,3.2078]
[1727108854933,0.37206,2687.6,2687.2,0.37211]
[1727108855121,0.37206,2687.6,2687.3,0.3721]
[1727108855323,0.37206,2687.6,2687.0,3.2078]
[1727108856330,0.37207,2687.5,2687.2,0.37211]
[1727108856529,0.37208,2687.4,2687.1,0.37212]
[1727108856730,0.93004,2687.9,2687.1,0.37212]
[1727108856731,0.37208,2687.5,2687.1,0.37212]
[1727108856929,0.37208,2687.5,2687.0,3.2078]
[1727108856930,0.37206,2687.6,2687.3,0.3721]
[1727108857127,0.37206,2687.6,2687.3,3.2078]
[1727108857433,0.37207,2687.5,2687.3,3.2078]
[1727108857634,0.37207,2687.6,2687.3,3.2078]
[1727108857927,0.37207,2687.5,2687.3,3.2078]
[1727108858627,0.93009,2687.8,2687.3,3.2078]
[1727108858628,0.37208,2687.4,2687.3,3.2078]
[1727108858828,0.93022,2687.4,2686.8,3.2078]
[1727108859132,0.37214,2687.0,2686.7,0.37218]
[1727108859331,0.37214,2687.0,2686.6,5.60398]
[1727108859837,0.93028,2687.2,2686.6,4.2137]
[1727108860224,0.37215,2687.0,2686.6,4.58589]
[1727108860421,0.93032,2687.1,2686.6,4.2137]
[1727108860628,3.2078,2687.1,2686.3,3.2078]
[1727108860932,0.37215,2687.0,2686.6,0.37219]
[1727108861529,3.2078,2687.1,2686.7,0.37218]
[1727108861737,1.9011,2687.3,2686.6,3.2078]
[1727108862035,0.37212,2687.2,2686.9,3.2078]
[1727108862727,2.2732,2687.3,2686.9,3.2078]
[1727108862927,1.9011,2687.3,2686.9,3.57994]
[1727108863528,2.2732,2687.3,2686.9,3.57994]
[1727108863723,0.37212,2687.2,2686.9,3.2078]
[1727108863923,2.27321,2687.3,2686.9,3.57995]
[1727108864120,2.27321,2687.3,2686.9,3.2078]
[1727108864325,1.32701,2687.3,2686.9,3.2078]
[1727108864731,1.32701,2687.3,2686.9,3.57995]
[1727108864935,1.32701,2687.3,2686.9,3.2078]
[1727108865125,0.9549,2687.3,2686.9,3.57995]
[1727108865329,1.327,2687.3,2686.9,3.57995]
[1727108866341,3.2078,2687.4,2686.9,3.57995]
[1727108866342,3.57989,2687.4,2687.0,0.37213]
[1727108866835,0.93018,2687.6,2687.2,0.3721]
[1727108866836,0.37206,2687.6,2687.2,0.3721]
[1727108867037,0.37206,2687.6,2687.2,3.5799]
[1727108867231,0.37207,2687.6,2687.2,3.5799]
[1727108867538,0.37208,2687.5,2687.2,3.2078]
[1727108867930,6.1657,2687.8,2687.1,0.37212]
[1727108867931,0.37209,2687.4,2687.1,0.37212]
[1727108868136,0.37209,2687.4,2687.0,1.39923]
[1727108868431,0.37209,2687.4,2687.1,0.37212]
[1727108868639,0.37209,2687.4,2687.0,1.0271]
[1727108868640,0.93016,2687.6,2687.0,1.0271]
[1727108868843,0.37213,2687.1,2686.8,0.37216]
[1727108869031,0.37214,2687.0,2686.7,0.37217]
[1727108869234,3.2078,2687.2,2686.7,0.37217]
[1727108869445,0.37212,2687.1,2686.7,0.37217]
[1727108869631,0.37212,2687.1,2686.8,0.37217]
[1727108870039,3.2078,2687.2,2686.4,40.8]
[1727108870241,0.37217,2686.8,2686.6,0.37219]
[1727108870440,0.37217,2686.8,2686.5,0.3722]
[1727108870628,1.93022,2687.1,2686.4,40.8]
[1727108870629,0.37214,2687.0,2686.4,41.17221]
[1727108870834,0.37219,2686.7,2686.5,0.3722]
[1727108871033,0.37214,2687.0,2686.6,0.37219]
[1727108871528,0.37217,2686.8,2686.6,0.37219]
[1727108872240,0.37218,2686.7,2686.5,0.3722]
[1727108872642,3.2078,2686.9,2686.4,40.8]
[1727108872860,0.3722,2686.6,2686.3,1.38863]
[1727108873145,0.3722,2686.6,2686.4,0.37222]
[1727108873441,0.37219,2686.7,2686.3,41.8164]
[1727108873636,0.37218,2686.7,2686.5,0.37221]
[1727108874242,3.2078,2687.3,2686.6,3.7224]
[1727108874443,3.2078,2687.3,2686.7,0.93046]
[1727108874646,3.2078,2687.3,2687.1,0.37211]
[1727108874831,3.2078,2687.3,2687.1,41.17211]
[1727108875344,0.37212,2687.2,2686.9,0.37215]
[1727108875532,2.89409243,2687.7,2686.7,3.2078]
[1727108875533,4.13797,2687.6,2686.7,3.2078]
[1727108875733,0.37209,2687.4,2687.1,0.37212]
[1727108875932,0.37207,2687.5,2687.2,0.3721]
[1727108876643,0.37209,2687.4,2687.1,0.37212]
[1727108876943,0.37209,2687.4,2687.2,0.37211]
[1727108877442,3.2078,2687.6,2686.9,0.9418]
[1727108877639,0.37212,2687.2,2686.9,0.9418]
[1727108877848,0.37212,2687.2,2687.0,0.37214]
[1727108878041,3.57991,2687.3,2687.0,0.37213]
[1727108878248,0.37211,2687.3,2687.0,0.37213]
[1727108878442,3.57991,2687.3,2687.0,0.37213]
[1727108878637,3.57991,2687.3,2687.1,0.37212]
[1727108878838,3.2078,2687.3,2687.0,0.37213]
[1727108879144,0.37212,2687.2,2687.0,0.37213]
[1727108879343,0.37212,2687.2,2686.9,0.9418]
[1727108879543,3.2078,2687.3,2687.0,0.37214]
[1727108879742,3.2078,2687.3,2687.1,0.37212]
[1727108879939,0.37209,2687.4,2687.2,0.37211]
[1727108880242,0.37209,2687.4,2687.1,0.37212]
[1727108880439,0.3721,2687.3,2687.1,0.37212]
[1727108880638,0.37211,2687.2,2687.0,40.8]
[1727108880834,0.37212,2687.1,2687.0,40.8]
[1727108881041,0.37217,2686.9,2686.7,0.37218]
[1727108881238,3.2078,2686.8,2686.4,0.9436]
[1727108881439,3.2078,2686.7,2686.4,0.9436]
[1727108881834,3.2078,2686.7,2686.3,0.47903]
[1727108881835,0.37222,2686.5,2686.3,0.1068]
[1727108882039,0.37222,2686.4,2686.3,0.1068]
[1727108882254,3.58002,2686.4,2686.3,0.1068]
[1727108882439,8.26318243,2686.4,2686.3,0.1068]
[1727108882638,0.37224,2686.3,2685.8,0.9436]
[1727108882838,3.2078,2686.1,2685.8,1.3159]
[1727108883348,3.58006,2686.1,2685.8,0.9436]
[1727108883536,0.96976308,2686.2,2685.8,0.3723]
[1727108883537,1.34202308,2686.2,2685.8,0.3723]
[1727108883741,3.2078,2686.1,2685.8,0.3723]
[1727108884152,4.17756308,2686.1,2685.8,0.3723]
[1727108884650,4.17756308,2686.1,2685.7,0.37231]
[1727108884958,0.96976308,2686.1,2686.0,0.37228]
[1727108885246,0.96976308,2686.1,2685.8,3.2078]
[1727108885247,0.96976308,2686.3,2686.2,0.37225]
[1727108885453,0.96976308,2686.5,2686.0,3.2078]
[1727108885651,0.96976308,2686.5,2686.4,0.37222]